bitfinex-derivatives/quotes_BTCF0:USTF0_20250614
["timestamp","ask_amount","ask_price","bid_price","bid_amount"]
[1749944460234,0.6077073,105450.0,105440.0,1.1313158]
[1749944461524,0.6077073,105450.0,105440.0,1.4921158]
[1749944461722,0.6077073,105450.0,105440.0,1.6946527]
[1749944467144,0.69660575,105450.0,105440.0,1.6946527]
[1749944467540,0.63732133,105450.0,105440.0,1.6946527]
[1749944468032,0.63732133,105450.0,105440.0,1.75389286]
[1749944468235,0.63732133,105450.0,105440.0,1.6946527]
[1749944468642,0.63732133,105450.0,105440.0,1.75389286]
[1749944470248,0.44774353,105450.0,105440.0,1.75389286]
[1749944471639,0.44774353,105450.0,105440.0,1.78599286]
[1749944471942,0.44774353,105450.0,105440.0,1.81829286]
[1749944473146,0.44774353,105450.0,105440.0,1.61575596]
[1749944473346,0.44774353,105450.0,105440.0,1.81829286]
[1749944473651,0.44574353,105450.0,105440.0,1.81929286]
[1749944479758,0.63532133,105450.0,105440.0,1.61675596]
[1749944479956,0.63532133,105450.0,105440.0,1.81929286]
[1749944480259,0.63532133,105450.0,105440.0,1.61675596]
[1749944480859,0.44574353,105450.0,105440.0,1.61675596]
[1749944481156,0.63532133,105450.0,105440.0,1.61675596]
[1749944481751,0.63532133,105450.0,105440.0,1.61655596]
[1749944481953,0.44574353,105450.0,105440.0,1.5573158]
[1749944482258,0.63532143,105450.0,105440.0,1.61655596]
[1749944482760,0.63532143,105450.0,105440.0,1.55215596]
[1749944484360,0.63532143,105450.0,105440.0,0.61063596]
[1749944484561,0.63532143,105450.0,105440.0,1.55215596]
[1749944486162,0.5760558,105450.0,105440.0,1.4929158]
[1749944487562,0.48715735,105450.0,105440.0,1.4929158]
[1749944490763,0.48715735,105450.0,105440.0,0.5513958]
[1749944491063,0.48715735,105450.0,105440.0,1.4929158]
[1749944491757,0.68969425,105450.0,105440.0,1.1321158]
[1749944492463,0.68969425,105450.0,105440.0,0.3667158]
[1749944495762,0.68969425,105450.0,105440.0,0.1905958]
[1749944495969,0.68969425,105450.0,105440.0,0.3667158]
[1749944496369,0.28462045,105450.0,105440.0,0.3667158]
[1749944496569,0.68969425,105450.0,105440.0,0.3667158]
[1749944497873,0.77859671,105450.0,105440.0,0.3667158]
[1749944501675,0.54465981,105450.0,105440.0,0.9300527]
[1749944501871,0.54040321,105450.0,105440.0,1.0258527]
[1749944502176,0.33786631,105450.0,105440.0,1.0258527]
[1749944502477,0.54040321,105450.0,105440.0,1.0258527]
[1749944503069,0.54040321,105450.0,105440.0,1.02999105]
[1749944505877,0.14828841,105450.0,105440.0,1.02999105]
[1749944509681,0.14828841,105450.0,105440.0,1.08925971]
[1749944509981,0.14828841,105450.0,105440.0,1.02999105]
[1749944511381,0.14828841,105450.0,105440.0,0.82745415]
[1749944511577,0.14828841,105450.0,105440.0,1.02999105]
[1749944511772,0.14828841,105450.0,105440.0,1.08925971]
[1749944511973,0.05938595,105450.0,105440.0,1.17816271]
[1749944512176,0.05938595,105450.0,105440.0,0.97562581]
[1749944512177,0.00014255,105450.0,105440.0,0.97562581]
[1749944512593,0.00014255,105450.0,105440.0,1.17816271]
[1749944514080,0.00014255,105450.0,105440.0,1.17402436]
[1749944515081,0.00014255,105450.0,105440.0,1.17816271]
[1749944515677,0.00014255,105450.0,105440.0,1.08925971]
[1749944517191,0.00014255,105450.0,105440.0,1.17402436]
[1749944517390,0.00014255,105450.0,105440.0,1.08512136]
[1749944522294,0.20267945,105450.0,105440.0,1.08512136]
[1749944523597,0.00014255,105450.0,105440.0,1.0258527]
[1749944524496,0.00014255,105450.0,105440.0,0.8497327]
[1749944524696,0.00014255,105450.0,105440.0,1.7928927]
[1749944532604,0.00014255,105450.0,105440.0,0.8497327]
[1749944532796,0.00014255,105450.0,105440.0,1.7923727]
[1749944537307,0.00014255,105450.0,105440.0,2.6118527]
[1749944541516,0.00014255,105450.0,105440.0,2.61599105]
[1749944542616,0.00014255,105450.0,105440.0,2.6118527]
[1749944549327,0.00014255,105450.0,105440.0,2.4093158]
[1749944549623,0.00014255,105450.0,105440.0,2.6118527]
[1749944560327,0.00014255,105450.0,105440.0,1.6692127]
[1749944560526,0.20267945,105450.0,105440.0,2.6106927]
[1749944566132,0.20267945,105450.0,105440.0,2.6106527]
[1749944567536,0.00014255,105450.0,105440.0,2.6106527]
[1749944571137,0.00014255,105450.0,105440.0,2.4081158]
[1749944571339,0.00014255,105450.0,105440.0,2.6106527]
[1749944578046,0.00014255,105450.0,105440.0,2.61479105]
[1749944579047,0.00014255,105450.0,105440.0,2.6106527]
[1749944580547,0.00014255,105450.0,105440.0,2.6106127]
[1749944580846,0.00014255,105450.0,105440.0,2.62929877]
[1749944581846,0.00014255,105450.0,105440.0,2.42676187]
[1749944582147,0.00014255,105450.0,105440.0,2.62929877]
[1749944587945,0.00014255,105450.0,105440.0,2.42676187]
[1749944588151,0.00014255,105450.0,105440.0,2.62929877]
[1749944591758,0.00014255,105450.0,105440.0,2.42676187]
[1749944592053,0.00014255,105450.0,105440.0,2.62929877]
[1749944592656,0.00014255,105450.0,105440.0,2.42676187]
[1749944593156,0.00014255,105450.0,105440.0,2.62929877]
[1749944593552,0.00014255,105450.0,105440.0,2.63197877]
[1749944594457,0.00014255,105450.0,105440.0,1.68789877]
[1749944594660,0.20267945,105450.0,105440.0,1.68789877]
[1749944594857,0.48885705,105450.0,105440.0,1.65649877]
[1749944595059,0.29927945,105450.0,105440.0,2.60097877]
[1749944595957,0.26717945,105450.0,105440.0,2.60097877]
[1749944596158,0.06464255,105450.0,105440.0,2.63377877]
[1749944597160,0.06464255,105450.0,105440.0,2.43124187]
[1749944597359,0.06464255,105450.0,105440.0,2.63377877]
[1749944600355,0.00014255,105450.0,105440.0,2.63377877]
[1749944603863,0.00014255,105450.0,105440.0,2.43124187]
[1749944604158,0.00014255,105450.0,105440.0,2.63377877]
[1749944604753,0.20267945,105450.0,105440.0,2.63377877]
[1749944605653,0.20267945,105450.0,105440.0,1.81429877]
[1749944610868,0.20267945,105450.0,105440.0,0.83701877]
[1749944611069,0.39225715,105450.0,105440.0,1.75153877]
[1749944611261,0.48835715,105450.0,105440.0,1.75153877]
[1749944612169,0.29877945,105450.0,105440.0,1.75153877]
[1749944612666,0.29877945,105450.0,105440.0,1.75149877]
[1749944613464,0.29877945,105450.0,105440.0,1.54896187]
[1749944613673,0.09624255,105450.0,105440.0,1.78449877]
[1749944614168,0.29877945,105450.0,105440.0,1.78449877]
[1749944619867,0.03174255,105450.0,105440.0,1.78449877]
[1749944620070,0.00014255,105450.0,105440.0,1.61246187]
[1749944620366,5e-08,105450.0,105440.0,2.01753567]
[1749944620571,5e-08,105450.0,105440.0,2.35167402]
[1749944620972,0.4881,105470.0,105460.0,0.1895597]
[1749944621172,0.4881,105470.0,105460.0,1.1136966]
[1749944621373,0.4881,105470.0,105460.0,1.2086966]
[1749944621777,0.2961369,105490.0,105480.0,0.1895238]
[1749944622076,0.0936,105490.0,105480.0,0.7528607]
[1749944622264,0.2961369,105490.0,105480.0,0.7528607]
[1749944622467,0.0936,105490.0,105480.0,0.7511638]
[1749944622672,0.2961369,105490.0,105480.0,0.9537007]
[1749944623274,0.2981369,105490.0,105480.0,0.9537007]
[1749944623672,0.2991369,105490.0,105480.0,0.7511638]
[1749944624069,0.0966,105490.0,105480.0,0.7511638]
[1749944624271,0.2991369,105490.0,105480.0,0.7511638]
[1749944627681,0.0966,105490.0,105480.0,0.7511638]
[1749944627880,0.4886427,105490.0,105480.0,0.7511638]
[1749944629882,0.49278105,105490.0,105480.0,0.7511638]
[1749944636688,0.49278105,105490.0,105480.0,0.7511238]
[1749944636883,0.4886427,105490.0,105480.0,0.7511238]
[1749944637486,0.4886427,105490.0,105480.0,0.5503238]
[1749944637687,0.4886427,105490.0,105480.0,0.7511238]
[1749944637887,0.2861058,105490.0,105480.0,0.3903238]
[1749944638091,0.4886427,105490.0,105480.0,0.3903238]
[1749944641191,0.4886427,105490.0,105480.0,0.1895238]
[1749944641694,0.4886427,105490.0,105480.0,0.3903238]
[1749944646293,0.4886427,105490.0,105480.0,0.7511238]
[1749944650203,0.4886427,105490.0,105480.0,0.3903238]
[1749944651202,0.1925058,105490.0,105480.0,1.0161607]
[1749944651404,0.3950427,105490.0,105480.0,1.0482607]
[1749944652096,0.2055369,105490.0,105480.0,1.0482607]
[1749944652293,0.3950427,105490.0,105480.0,1.0482607]
[1749944652804,0.2055369,105490.0,105480.0,1.0482607]
[1749944653107,0.3950427,105490.0,105480.0,1.0482607]
[1749944653604,0.003,105490.0,105480.0,1.0482607]
[1749944654001,0.003,105490.0,105480.0,1.2507976]
[1749944654207,0.003,105490.0,105480.0,1.8511007]
[1749944655107,0.003,105490.0,105480.0,2.0536376]
[1749944655612,0.003,105490.0,105480.0,1.8511007]
[1749944656206,0.003,105490.0,105480.0,2.0536376]
[1749944657103,0.003,105490.0,105480.0,1.8511007]
[1749944659508,0.003,105490.0,105480.0,0.8474607]
[1749944659708,0.003,105490.0,105480.0,1.8463407]
[1749944661699,0.003,105490.0,105480.0,2.0488776]
[1749944662709,0.003,105490.0,105480.0,2.8681176]
[1749944663608,0.003,105490.0,105480.0,2.4630438]
[1749944664309,0.003,105490.0,105480.0,2.8681176]
[1749944664811,0.002,105490.0,105480.0,2.8681176]
[1749944665013,0.003,105490.0,105480.0,2.8681176]
[1749944665411,0.003,105490.0,105480.0,2.4630438]
[1749944665612,0.003,105490.0,105480.0,2.6655807]
[1749944666014,0.002,105490.0,105480.0,2.6655807]
[1749944666215,0.002,105490.0,105480.0,2.8681176]
[1749944666413,0.001,105490.0,105480.0,2.8691176]
[1749944666610,0.001,105490.0,105480.0,2.0667976]
[1749944666810,0.00014255,105500.0,105490.0,0.1895056]
[1749944667010,0.00014255,105500.0,105490.0,0.66287326]
[1749944667215,0.20267945,105500.0,105490.0,0.86541016]
[1749944667415,0.20267945,105500.0,105490.0,1.86797016]
[1749944667916,0.00014255,105500.0,105490.0,1.66543326]
[1749944668109,0.20367945,105500.0,105490.0,1.66543326]
[1749944668418,0.20367945,105500.0,105490.0,1.86797016]
[1749944668717,0.20467945,105500.0,105490.0,1.86797016]
[1749944669117,0.20467945,105500.0,105490.0,1.94213455]
[1749944669518,0.00214255,105500.0,105490.0,1.94213455]
[1749944669717,0.20467945,105500.0,105490.0,1.66543326]
[1749944670019,0.20467945,105500.0,105490.0,1.86797016]
[1749944672122,0.00214255,105500.0,105490.0,1.86797016]
[1749944672322,0.20467945,105500.0,105490.0,1.86797016]
[1749944673120,0.00214255,105500.0,105490.0,1.86797016]
[1749944673419,0.20467945,105500.0,105490.0,1.66543326]
[1749944673627,0.00214255,105500.0,105490.0,1.86797016]
[1749944673818,0.20467945,105500.0,105490.0,1.86797016]
[1749944674624,0.20467945,105500.0,105490.0,1.94305212]
[1749944674820,0.00214255,105500.0,105490.0,1.94305212]
[1749944675020,0.20467945,105500.0,105490.0,1.94305212]
[1749944676425,0.2088178,105500.0,105490.0,1.94305212]
[1749944676620,0.2088178,105500.0,105490.0,1.74051522]
[1749944676821,0.2088178,105500.0,105490.0,1.94305212]
[1749944677115,0.2088178,105500.0,105490.0,1.74051522]
[1749944677322,0.2088178,105500.0,105490.0,1.94305212]
[1749944677517,0.2088178,105500.0,105490.0,0.94049212]
[1749944677722,0.2088178,105500.0,105490.0,1.94341212]
[1749944678427,0.20467945,105500.0,105490.0,1.94341212]
[1749944678828,0.20467945,105500.0,105490.0,0.73795522]
[1749944679031,0.26687945,105500.0,105490.0,1.94313212]
[1749944679328,0.06434255,105500.0,105490.0,1.94313212]
[1749944679528,0.2710178,105500.0,105490.0,1.94313212]
[1749944681229,1e-07,105500.0,105490.0,1.94313212]
[1749944681434,0.4881,105510.0,105500.0,0.1894878]
[1749944681732,0.4881,105510.0,105500.0,0.8477247]
[1749944682531,0.4891,105510.0,105500.0,0.8477247]
[1749944682932,0.4921,105510.0,105500.0,0.8477247]
[1749944685134,0.4921,105510.0,105500.0,0.6451878]
[1749944685334,0.4921,105510.0,105500.0,0.8477247]
[1749944688339,0.4921,105510.0,105500.0,0.6451878]
[1749944688537,0.4921,105510.0,105500.0,0.8477247]
[1749944698749,0.49623835,105510.0,105500.0,0.8477247]
[1749944699748,0.4921,105510.0,105500.0,0.6451878]
[1749944700041,0.4921,105510.0,105500.0,0.8477247]
[1749944701548,0.4921,105510.0,105500.0,0.6451878]
[1749944702141,0.4921,105510.0,105500.0,1.6537647]
[1749944702746,0.4921,105510.0,105500.0,1.45536615]
[1749944702946,0.4921,105510.0,105500.0,1.65790305]
[1749944703753,0.4921,105510.0,105500.0,1.6537647]
[1749944708452,0.4921,105510.0,105500.0,1.6571247]
[1749944715656,0.4921,105510.0,105500.0,2.6787016]
[1749944715959,0.2025369,105530.0,105520.0,0.2368148]
[1749944716159,0.0305,105530.0,105520.0,1.0959575]
[1749944716660,0.2330369,105530.0,105520.0,1.1368167]
[1749944716854,0.0305,105530.0,105520.0,1.1368167]
[1749944717060,0.2330369,105530.0,105520.0,1.1691167]
[1749944717261,0.0305,105530.0,105520.0,1.1691167]
[1749944717562,0.2330369,105530.0,105520.0,1.1691167]
[1749944717862,0.2340369,105530.0,105520.0,1.1691167]
[1749944718250,0.0315,105530.0,105520.0,1.5299167]
[1749944718452,0.2340369,105530.0,105520.0,1.5299167]
[1749944719364,0.0315,105530.0,105520.0,1.5615167]
[1749944719566,0.2340369,105530.0,105520.0,2.3755567]
[1749944720264,0.001,105530.0,105520.0,2.3755567]
[1749944720858,0.29537945,105540.0,105530.0,0.1894339]
[1749944721059,0.29537945,105540.0,105530.0,0.7527708]
[1749944721561,0.09284255,105540.0,105530.0,0.7527708]
[1749944721765,0.29537945,105540.0,105530.0,0.7527708]
[1749944722161,0.29637945,105540.0,105530.0,0.7527708]
[1749944723965,0.09384255,105540.0,105530.0,0.7527708]
[1749944724163,0.29637945,105540.0,105530.0,0.7527708]
[1749944725867,0.09384255,105540.0,105530.0,0.7527708]
[1749944726066,0.29637945,105540.0,105530.0,0.7527708]
[1749944726863,0.00114255,105540.0,105530.0,0.7527708]
[1749944727062,0.23407945,105540.0,105530.0,0.7836708]
[1749944727261,0.23407945,105540.0,105530.0,0.8147708]
[1749944727663,0.26647945,105540.0,105530.0,0.8147708]
[1749944730369,0.06394255,105540.0,105530.0,0.8147708]
[1749944730568,0.26647945,105540.0,105530.0,0.8147708]
[1749944731970,0.06394255,105540.0,105530.0,0.6122339]
[1749944732166,0.65843235,105540.0,105530.0,0.5502339]
[1749944732371,0.69093235,105540.0,105530.0,0.7512739]
[1749944732565,0.48839545,105540.0,105530.0,0.7512739]
[1749944734473,0.29897945,105540.0,105530.0,0.7512739]
[1749944734775,0.09644255,105540.0,105530.0,0.7512739]
[1749944734976,0.29897945,105540.0,105530.0,0.9538108]
[1749944735276,0.3031178,105540.0,105530.0,0.9847108]
[1749944735471,0.3031178,105540.0,105530.0,0.7821739]
[1749944735672,0.3031178,105540.0,105530.0,0.9847108]
[1749944735872,0.1005809,105540.0,105530.0,0.9847108]
[1749944736073,0.3031178,105540.0,105530.0,0.9847108]
[1749944737780,0.42141393,105540.0,105530.0,0.9847108]
[1749944737980,0.39182131,105540.0,105530.0,0.9847108]
[1749944738869,0.18928441,105540.0,105530.0,0.9847108]
[1749944739678,0.09398441,105540.0,105530.0,0.7821739]
[1749944739878,0.09398441,105540.0,105530.0,0.8478739]
[1749944739879,0.15312307,105540.0,105530.0,0.8478739]
[1749944740078,0.35565997,105540.0,105530.0,0.8478739]
[1749944740480,0.35565997,105540.0,105530.0,1.0504108]
[1749944740681,0.15312307,105540.0,105530.0,1.0504108]
[1749944741884,0.15312307,105540.0,105530.0,0.8478739]
[1749944742078,0.15312307,105540.0,105530.0,1.0504108]
[1749944744385,0.35565997,105540.0,105530.0,1.0504108]
[1749944745381,0.15312307,105540.0,105530.0,1.0504108]
[1749944745582,0.35565997,105540.0,105530.0,1.0504108]
[1749944746686,0.35565997,105540.0,105530.0,0.8493708]
[1749944746988,0.35565997,105540.0,105530.0,1.6669139]
[1749944747183,0.35565997,105540.0,105530.0,1.8694508]
[1749944748387,0.2078178,105540.0,105530.0,1.8694508]
[1749944749387,0.0052809,105540.0,105530.0,1.8694508]
[1749944749588,0.2078178,105540.0,105530.0,1.8694508]
[1749944752788,0.2078178,105540.0,105530.0,1.6669139]
[1749944752984,0.2078178,105540.0,105530.0,1.8694508]
[1749944759194,0.2078178,105540.0,105530.0,1.6669139]
[1749944759387,0.2078178,105540.0,105530.0,1.8694508]
[1749944761797,0.35570338,105540.0,105530.0,1.8694508]
[1749944764800,0.15316648,105540.0,105530.0,1.8694508]
[1749944765099,0.35570338,105540.0,105530.0,1.8694508]
[1749944765999,0.15316648,105540.0,105530.0,1.8694508]
[1749944766200,0.35570338,105540.0,105530.0,1.8694508]
[1749944766904,0.15316648,105540.0,105530.0,1.8694508]
[1749944767107,0.35570338,105540.0,105530.0,1.8694508]
[1749944767607,0.29654915,105540.0,105530.0,1.8694508]
[1749944767904,0.29654915,105540.0,105530.0,1.6669139]
[1749944768105,0.29654915,105540.0,105530.0,1.8694508]
[1749944772896,0.09401225,105540.0,105530.0,1.8694508]
[1749944773102,0.29654915,105540.0,105530.0,1.8694508]
[1749944774610,0.09401225,105540.0,105530.0,1.8694508]
[1749944774811,0.29654915,105540.0,105530.0,1.8694508]
[1749944776610,0.09401225,105540.0,105530.0,0.6468339]
[1749944776912,0.2924108,105540.0,105530.0,1.8510508]
[1749944777111,0.0898739,105540.0,105530.0,1.8510508]
[1749944777818,0.09401225,105540.0,105530.0,1.8510508]
[1749944778115,0.29654915,105540.0,105530.0,1.8510508]
[1749944779415,0.29654915,105540.0,105530.0,1.8520108]
[1749944782318,0.29654915,105540.0,105530.0,1.6494739]
[1749944782518,0.29654915,105540.0,105530.0,1.8520108]
[1749944784218,0.29654915,105540.0,105530.0,1.6494739]
[1749944784414,0.29654915,105540.0,105530.0,1.8520108]
[1749944787021,0.29654915,105540.0,105530.0,1.6494739]
[1749944787217,0.29654915,105540.0,105530.0,1.8520108]
[1749944787418,0.29654915,105540.0,105530.0,1.89636391]
[1749944788116,0.29654915,105540.0,105530.0,1.8520108]
[1749944788316,0.2078178,105540.0,105530.0,1.8520108]
[1749944794824,0.2078178,105540.0,105530.0,0.8493708]
[1749944795026,0.2078178,105540.0,105530.0,1.8475308]
[1749944795423,0.0052809,105540.0,105530.0,1.8475308]
[1749944795722,0.2078178,105540.0,105530.0,1.8475308]
[1749944801531,0.0052809,105540.0,105530.0,1.8475308]
[1749944801735,0.2078178,105540.0,105530.0,1.8475308]
[1749944804834,0.29666003,105540.0,105530.0,1.89188638]
[1749944813441,0.29252168,105540.0,105530.0,1.89188638]
[1749944813848,0.08998478,105540.0,105530.0,1.89188638]
[1749944814143,0.29252168,105540.0,105530.0,1.89188638]
[1749944814638,0.29252168,105540.0,105530.0,1.68934948]
[1749944815045,0.29252168,105540.0,105530.0,1.89188638]
[1749944815248,0.29252168,105540.0,105530.0,1.8475308]
[1749944815746,0.20367945,105540.0,105530.0,1.8475308]
[1749944817847,0.20367945,105540.0,105530.0,1.8369708]
[1749944819845,0.20367945,105540.0,105530.0,1.6344339]
[1749944820049,0.20367945,105540.0,105530.0,1.8369708]
[1749944820448,0.2078178,105540.0,105530.0,1.8369708]
[1749944821048,0.2078178,105540.0,105530.0,0.8493708]
[1749944821247,0.0052809,105540.0,105530.0,1.8360108]
[1749944821447,0.20367945,105540.0,105530.0,1.8360108]
[1749944821747,0.20367945,105540.0,105530.0,1.6334739]
[1749944822049,0.20367945,105540.0,105530.0,1.8360108]
[1749944822554,0.2078178,105540.0,105530.0,1.8360108]
[1749944823451,0.20367945,105540.0,105530.0,1.8360108]
[1749944824652,0.3972348,105540.0,105530.0,1.8360108]
[1749944824852,0.3972348,105540.0,105530.0,1.6334739]
[1749944825052,0.3972348,105540.0,105530.0,1.8360108]
[1749944825552,0.39309645,105540.0,105530.0,1.8360108]
[1749944826555,0.39309645,105540.0,105530.0,1.6334739]
[1749944826754,0.39309645,105540.0,105530.0,1.8360108]
[1749944827154,0.39309645,105540.0,105530.0,0.8493708]
[1749944827558,0.39309645,105540.0,105530.0,1.8354108]
[1749944829749,0.19055955,105540.0,105530.0,1.8354108]
[1749944830155,0.39309645,105540.0,105530.0,1.8354108]
[1749944830354,0.39309645,105540.0,105530.0,0.8493708]
[1749944830555,0.39309645,105540.0,105530.0,1.8352108]
[1749944830761,0.3972348,105540.0,105530.0,1.8352108]
[1749944831056,0.3972348,105540.0,105530.0,0.6468339]
[1749944831257,0.9929717,105540.0,105530.0,0.1894339]
[1749944831457,1.0558717,105540.0,105530.0,0.1894339]
[1749944833957,0.6950717,105540.0,105530.0,0.1894339]
[1749944834163,1.0558717,105540.0,105530.0,0.1894339]
[1749944835257,1.14467318,105540.0,105530.0,0.1894339]
[1749944835453,1.17428187,105540.0,105530.0,0.1894339]
[1749944835855,1.0558717,105540.0,105530.0,0.1894339]
[1749944836367,1.14467218,105540.0,105530.0,0.1894339]
[1749944836865,0.6950717,105540.0,105530.0,0.1894339]
[1749944837366,0.58133106,105540.0,105530.0,0.1894339]
[1749944837666,0.78386796,105540.0,105530.0,0.1894339]
[1749944839664,0.37879416,105540.0,105530.0,0.1894339]
[1749944839966,0.97386796,105540.0,105530.0,0.1894339]
[1749944840560,0.77133106,105540.0,105530.0,0.1894339]
[1749944842468,0.80094497,105540.0,105530.0,0.1894339]
[1749944843969,0.59840807,105540.0,105530.0,0.1894339]
[1749944844269,0.88972768,105540.0,105530.0,0.1894339]
[1749944844470,0.80094497,105540.0,105530.0,0.1894339]
[1749944845780,0.6825348,105540.0,105530.0,0.1894339]
[1749944851978,0.4799979,105540.0,105530.0,0.1894339]
[1749944852285,0.6825348,105540.0,105530.0,0.2203339]
[1749944853982,0.189435,105530.0,105520.0,0.5844299]
[1749944854287,0.40872874,105530.0,105520.0,0.8195668]
[1749944855186,0.20619184,105530.0,105520.0,0.8195668]
[1749944855388,0.40872874,105530.0,105520.0,0.8195668]
[1749944855591,0.40872874,105530.0,105520.0,0.6170299]
[1749944856288,0.44072874,105530.0,105520.0,0.6170299]
[1749944858892,0.23819184,105530.0,105520.0,0.6170299]
[1749944859092,0.44072874,105530.0,105520.0,0.6170299]
[1749944859294,0.58872022,105530.0,105520.0,0.66138728]
[1749944860694,0.55672022,105530.0,105520.0,0.66138728]
[1749944862296,0.55672022,105530.0,105520.0,0.86392418]
[1749944862592,0.35418332,105530.0,105520.0,0.86392418]
[1749944862793,0.55672022,105530.0,105520.0,0.86392418]
[1749944866202,0.55672022,105530.0,105520.0,0.66138728]
[1749944866394,0.55672022,105530.0,105520.0,0.86392418]
[1749944866596,0.55672022,105530.0,105520.0,0.66138728]
[1749944866794,0.55672022,105530.0,105520.0,0.86392418]
[1749944869104,0.55672022,105530.0,105520.0,1.22472418]
[1749944869301,0.49752363,105530.0,105520.0,1.1803668]
[1749944869705,0.40872874,105530.0,105520.0,1.1803668]
[1749944871205,0.41286709,105530.0,105520.0,1.1803668]
[1749944871705,0.41286709,105530.0,105520.0,0.8195668]
[1749944874206,0.40872874,105530.0,105520.0,0.8195668]
[1749944875205,0.41286709,105530.0,105520.0,0.8195668]
[1749944875999,0.41286709,105530.0,105520.0,0.8167668]
[1749944876400,0.21033019,105530.0,105520.0,0.4270299]
[1749944876602,0.41286709,105530.0,105520.0,0.6295668]
[1749944879306,0.40872874,105530.0,105520.0,0.6295668]
[1749944880110,0.49754611,105530.0,105520.0,0.86113839]
[1749944880405,0.49754611,105530.0,105520.0,0.65860149]
[1749944880707,0.49754611,105530.0,105520.0,0.86113839]
[1749944882308,0.50168446,105530.0,105520.0,0.86113839]
[1749944882509,0.50168446,105530.0,105520.0,0.67393839]
[1749944882708,0.50168446,105530.0,105520.0,0.86113839]
[1749944887403,0.49754611,105530.0,105520.0,0.86113839]
[1749944890213,0.49754611,105530.0,105520.0,0.8167668]
[1749944890412,0.50168446,105530.0,105520.0,0.8167668]
[1749944890908,0.41286709,105530.0,105520.0,0.8167668]
[1749944891607,0.40872874,105530.0,105520.0,0.8167668]
[1749944891909,0.20619184,105530.0,105520.0,0.9750299]
[1749944892111,0.40872874,105530.0,105520.0,0.9750299]
[1749944892409,0.40872874,105530.0,105520.0,1.1775668]
[1749944894414,0.20619184,105530.0,105520.0,1.1775668]
[1749944894615,0.40872874,105530.0,105520.0,1.1775668]
[1749944896515,0.40872874,105530.0,105520.0,0.9903668]
[1749944896719,0.40872874,105530.0,105520.0,1.9613668]
[1749944897011,0.20619184,105530.0,105520.0,0.7878299]
[1749944897317,0.40872874,105530.0,105520.0,0.9903668]
[1749944897518,0.40872874,105530.0,105520.0,1.9595268]
[1749944900421,0.49758042,105530.0,105520.0,2.0039159]
[1749944904222,0.49758042,105530.0,105520.0,1.800219]
[1749944907921,0.49758042,105530.0,105520.0,0.832219]
[1749944908224,0.49758042,105530.0,105520.0,1.799859]
[1749944910526,0.49758042,105530.0,105520.0,1.7554699]
[1749944911026,0.40872874,105530.0,105520.0,1.7554699]
[1749944912730,0.55680427,105530.0,105520.0,1.85900996]
[1749944912928,0.4975773,105530.0,105520.0,1.79984421]
[1749944917635,0.4975773,105530.0,105520.0,0.83220421]
[1749944917831,0.4975773,105530.0,105520.0,1.79848421]
[1749944918632,0.2950404,105530.0,105520.0,1.79848421]
[1749944918834,0.4975773,105530.0,105520.0,1.79848421]
[1749944919333,0.55680911,105530.0,105520.0,1.79848421]
[1749944919634,0.4975773,105530.0,105520.0,1.79848421]
[1749944922632,0.55680451,105530.0,105520.0,1.85764996]
[1749944922835,0.4975773,105530.0,105520.0,1.79848421]
[1749944923737,0.4975773,105530.0,105520.0,1.7541099]
[1749944929439,0.4975773,105530.0,105520.0,1.3933099]
[1749944930344,0.55680618,105530.0,105520.0,1.45247565]
[1749944930543,0.55680618,105530.0,105520.0,1.3933099]
[1749944931144,0.4975773,105530.0,105520.0,1.3933099]
[1749944935848,0.4975773,105530.0,105520.0,1.3883899]
[1749944936148,0.5307773,105530.0,105520.0,1.3883899]
[1749944939151,0.59000832,105530.0,105520.0,1.3883899]
[1749944939452,0.5307773,105530.0,105520.0,1.3883899]
[1749944941152,0.5307773,105530.0,105520.0,1.7491899]
[1749944946958,0.5307773,105530.0,105520.0,0.7878299]
[1749944947159,0.5307773,105530.0,105520.0,1.7491899]
[1749944948259,0.5307773,105530.0,105520.0,0.7878299]
[1749944948557,0.5307773,105530.0,105520.0,1.7491899]
[1749944949460,0.59000382,105530.0,105520.0,1.7491899]
[1749944949860,0.5307773,105530.0,105520.0,1.7491899]
[1749944954566,0.5307773,105530.0,105520.0,0.9709899]
[1749944954774,0.64924205,105530.0,105520.0,0.531127]
[1749944954963,0.5307773,105530.0,105520.0,0.499927]
[1749944955164,0.60251105,105530.0,105520.0,0.316767]
[1749944955971,0.3903404,105530.0,105520.0,0.316767]
[1749944956170,0.5627773,105530.0,105520.0,0.316767]
[1749944956366,0.5627773,105530.0,105520.0,0.380367]
[1749944956768,0.5307773,105530.0,105520.0,0.380367]
[1749944957476,0.53491565,105530.0,105520.0,0.380367]
[1749944958474,0.5307773,105530.0,105520.0,0.380367]
[1749944959874,0.54039403,105530.0,105520.0,0.380367]
[1749944962174,0.5307773,105530.0,105520.0,0.380367]
[1749944963574,0.53491565,105530.0,105520.0,0.380367]
[1749944964074,0.44606709,105530.0,105520.0,0.380367]
[1749944964377,0.24353019,105530.0,105520.0,0.380367]
[1749944964577,0.49758389,105530.0,105520.0,0.380367]
[1749944965179,0.55680614,105530.0,105520.0,0.43957203]
[1749944965879,0.58830614,105530.0,105520.0,0.40807203]
[1749944966579,0.58830614,105530.0,105520.0,0.348867]
[1749944975386,0.58830614,105530.0,105520.0,0.378967]
[1749944975882,0.58827552,105530.0,105520.0,0.378967]
[1749944978481,0.55677552,105530.0,105520.0,0.378967]
[1749944978878,0.58997552,105530.0,105520.0,0.378967]
[1749944981585,0.58997552,105530.0,105520.0,0.348867]
[1749944987290,0.53075327,105530.0,105520.0,0.348867]
[1749944987491,0.58996474,105530.0,105520.0,0.348867]
[1749944987692,0.53075327,105530.0,105520.0,0.348867]
[1749944987992,0.58996474,105530.0,105520.0,0.348867]
[1749944988191,0.53075327,105530.0,105520.0,0.348867]
[1749944988389,0.58996613,105530.0,105520.0,0.348867]
[1749944989289,0.53075327,105530.0,105520.0,0.348867]
[1749944990695,0.58996942,105530.0,105520.0,0.348867]
[1749944991191,0.53075327,105530.0,105520.0,0.348867]
[1749944991390,0.58997171,105530.0,105520.0,0.348867]
[1749944991793,0.53075327,105530.0,105520.0,0.348867]
[1749944992391,0.71351327,105530.0,105520.0,0.348867]
[1749944992793,0.77273456,105530.0,105520.0,0.348867]
[1749944993192,0.77273456,105530.0,105520.0,0.40807203]
[1749944993494,0.71351327,105530.0,105520.0,0.348867]
[1749944994199,0.77273995,105530.0,105520.0,0.40807203]
[1749944995599,0.71351327,105530.0,105520.0,0.348867]
[1749944996300,0.77273998,105530.0,105520.0,0.40807203]
[1749944997797,0.71351327,105530.0,105520.0,0.348867]
[1749944998305,0.77273873,105530.0,105520.0,0.40807203]
[1749944999001,0.71351327,105530.0,105520.0,0.348867]
[1749944999303,0.77273858,105530.0,105520.0,0.40807203]
[1749944999903,0.71351327,105530.0,105520.0,0.348867]
[1749945000404,0.77273989,105530.0,105520.0,0.40807203]
[1749945001305,0.71351327,105530.0,105520.0,0.348867]
[1749945001803,0.77273864,105530.0,105520.0,0.40807203]
[1749945002106,0.71351327,105530.0,105520.0,0.348867]